fUSD/lending_fUSD_20260417
["ID","MTS","AMOUNT","RATE_DAILY","PERIOD"]
[420655582,1776435038783,-150.0,6.812e-05,2]
[420655583,1776435038792,-150.0,6.815e-05,2]
[420655584,1776435038804,-150.0,6.817e-05,2]
[420655585,1776435038815,-230.0,6.822e-05,3]
[420655586,1776435038825,-150.0,6.823e-05,2]
[420655587,1776435038835,-150.0,6.831e-05,2]
[420655588,1776435038845,-150.0,6.832e-05,2]
[420655589,1776435038854,-150.0,6.834e-05,2]
[420655590,1776435038865,-150.0,6.836e-05,2]
[420655591,1776435038875,-150.0,6.845e-05,2]
[420655592,1776435038884,-150.0,6.845e-05,2]
[420655593,1776435038894,-150.0,6.845e-05,2]
[420655594,1776435038905,-150.0,6.845e-05,2]
[420655595,1776435038916,-500.0,6.845e-05,2]
[420655596,1776435038927,-572.5509,6.849e-05,2]
[420655597,1776435038936,-150.0,6.854e-05,2]
[420655598,1776435038946,-150.0,6.856e-05,2]
[420655599,1776435038956,-150.0,6.859e-05,2]
[420655600,1776435038965,-150.0,6.86e-05,2]
[420655601,1776435038977,-150.0,6.868e-05,2]
[420655602,1776435038986,-150.0,6.873e-05,2]
[420655603,1776435038997,-150.0,6.875e-05,2]
[420655604,1776435039007,-150.0,6.878e-05,2]
[420655605,1776435039017,-150.0,6.885e-05,2]
[420655606,1776435039027,-150.0,6.888e-05,2]
[420655607,1776435039037,-150.0,6.89e-05,2]
[420655608,1776435039045,-150.0,6.891e-05,2]
[420655609,1776435039056,-150.0,6.9e-05,2]
[420655610,1776435039066,-5988.16,6.9e-05,2]
[420655611,1776435039075,-1573.18,6.9e-05,2]
[420655613,1776435039084,-3700.0,6.9e-05,2]
[420655615,1776435039094,-150.0,6.905e-05,2]
[420655617,1776435039103,-150.0,6.905e-05,2]
[420655619,1776435039113,-150.0,6.91e-05,2]
[420655621,1776435039123,-150.0,6.912e-05,2]
[420655623,1776435039133,-150.0,6.913e-05,2]
[420655624,1776435039142,-150.0,6.917e-05,2]
[420655625,1776435039151,-150.0,6.922e-05,2]
[420655626,1776435039161,-9999.99,6.925e-05,2]
[420655627,1776435039171,-299.99,6.925e-05,2]
[420655628,1776435039180,-150.99,6.925e-05,2]
[420655629,1776435039190,-24999.99,6.925e-05,2]
[420655630,1776435039199,-150.0,6.928e-05,2]
[420655631,1776435039208,-150.0,6.935e-05,2]
[420655632,1776435039217,-150.0,6.935e-05,2]
[420655633,1776435039226,-150.0,6.935e-05,2]
[420655634,1776435039239,-150.0,6.939e-05,2]
[420655635,1776435039248,-150.0,6.943e-05,2]
[420655636,1776435039257,-150.0,6.946e-05,2]
[420655637,1776435039267,-150.0,6.947e-05,2]
[420655638,1776435039277,-2551.088195,6.953e-05,2]
[420655639,1776435039286,-150.0,6.958e-05,2]
[420655640,1776435039295,-150.0,6.965e-05,2]
[420655641,1776435039304,-150.0,6.965e-05,2]
[420655642,1776435039314,-150.0,6.965e-05,2]
[420655643,1776435039323,-150.0,6.965e-05,2]
[420655644,1776435039334,-150.0,6.965e-05,2]
[420655645,1776435039344,-150.0,6.965e-05,2]
[420655646,1776435039354,-1000.0,6.967e-05,2]
[420655647,1776435039363,-150.0,6.975e-05,2]
[420655648,1776435039377,-150.0,6.98e-05,2]
[420655649,1776435039391,-150.0,6.984e-05,2]
[420655650,1776435039404,-150.0,6.987e-05,2]
[420655651,1776435039417,-150.0,6.992e-05,2]
[420655652,1776435039430,-452.01789729,6.993e-05,2]
[420655653,1776435039441,-150.0,6.995e-05,2]
[420655654,1776435039452,-7400.0,7e-05,2]
[420655655,1776435039464,-150.0,7.002e-05,2]
[420655656,1776435039476,-150.0,7.003e-05,2]
[420655657,1776435039489,-150.0,7.004e-05,2]
[420655658,1776435039501,-150.0,7.009e-05,2]
[420655659,1776435039513,-157.4443109,7.017e-05,2]
[420655660,1776435039527,-150.0,7.019e-05,2]
[420655661,1776435039539,-150.0,7.021e-05,2]
[420655662,1776435039553,-150.0,7.025e-05,2]
[420655663,1776435039565,-150.0,7.025e-05,2]
[420655664,1776435039579,-150.0,7.025e-05,2]
[420655665,1776435039592,-150.0,7.025e-05,2]
[420655666,1776435039604,-150.0,7.031e-05,2]
[420655667,1776435039617,-150.0,7.033e-05,2]
[420655668,1776435039629,-250.0,7.037e-05,2]
[420655669,1776435039642,-150.0,7.039e-05,2]
[420655670,1776435039655,-150.0,7.045e-05,2]
[420655671,1776435039667,-150.0,7.048e-05,2]
[420655672,1776435039677,-150.0,7.053e-05,2]
[420655673,1776435039688,-150.0,7.055e-05,2]
[420655674,1776435039698,-150.0,7.058e-05,2]
[420655675,1776435039713,-150.0,7.061e-05,2]
[420655676,1776435039724,-150.0,7.07e-05,2]
[420655677,1776435039736,-150.0,7.072e-05,2]
[420655678,1776435039751,-150.0,7.074e-05,2]
[420655679,1776435039764,-150.0,7.076e-05,2]
[420655680,1776435039778,-150.0,7.085e-05,2]
[420655681,1776435039791,-150.0,7.085e-05,2]
[420655682,1776435039803,-150.0,7.09e-05,2]
[420655683,1776435039815,-150.0,7.093e-05,2]
[420655684,1776435039827,-150.0,7.095e-05,2]
[420655685,1776435039840,-1000.0,7.095e-05,2]
[420655686,1776435039850,-150.0,7.096e-05,2]
[420655687,1776435039860,-150.0,7.099e-05,2]
[420655688,1776435039870,-154.08578314,7.109e-05,2]
[420655689,1776435039881,-150.0,7.113e-05,2]
[420655690,1776435039892,-150.0,7.115e-05,2]
[420655691,1776435039906,-150.0,7.115e-05,2]
[420655692,1776435039918,-150.0,7.115e-05,2]
[420655693,1776435039928,-150.0,7.118e-05,2]
[420655694,1776435039938,-150.0,7.119e-05,2]
[420655695,1776435039950,-150.0,7.125e-05,2]
[420655696,1776435039961,-150.0,7.132e-05,2]
[420655697,1776435039975,-382.34013392,7.132e-05,2]
[420655698,1776435039987,-150.0,7.138e-05,2]
[420655699,1776435039998,-150.0,7.14e-05,2]
[420655700,1776435040011,-1384.97862075,7.14e-05,2]
[420655701,1776435040024,-150.0,7.145e-05,2]
[420655702,1776435040037,-150.0,7.145e-05,2]
[420655703,1776435040048,-150.0,7.148e-05,2]
[420655704,1776435040058,-150.0,7.15e-05,2]
[420655705,1776435040069,-150.0,7.152e-05,2]
[420655706,1776435040079,-150.0,7.16e-05,2]
[420655707,1776435040090,-1000.0,7.161e-05,2]
[420655708,1776435040102,-150.0,7.162e-05,2]
[420655709,1776435040113,-150.0,7.169e-05,2]
[420655710,1776435040124,-150.0,7.175e-05,2]
[420655711,1776435040134,-150.0,7.177e-05,2]
[420655712,1776435040146,-250.0,7.177e-05,2]
[420655713,1776435040167,-6534.05,7.178e-05,2]
[420655714,1776435040178,-150.0,7.179e-05,2]
[420655715,1776435040190,-150.0,7.183e-05,2]
[420655716,1776435040201,-150.0,7.184e-05,2]
[420655717,1776435040212,-150.0,7.187e-05,2]
[420655718,1776435040225,-1000.0,7.2e-05,2]
[420655719,1776435040236,-1064.22873266,7.203e-05,2]
[420655720,1776435040252,-1787.07126734,7.203e-05,2]
[420655721,1776435040264,-2237.25387976,7.204e-05,2]
[420655722,1776435040278,-328.39829104,7.204e-05,2]
[420655723,1776435040292,-1904.79480776,7.204e-05,2]
[420655724,1776435040303,-152.0,7.204e-05,2]
[420655725,1776435040314,-151.9460189,7.205e-05,2]
[420655726,1776435040326,-269.47233636,7.205e-05,2]
[420655727,1776435040337,-150.0,7.205e-05,2]
[420655728,1776435040348,-252.83565639,7.205e-05,2]
[420655729,1776435040359,-159.43111905,7.205e-05,2]
[420655730,1776435040371,-150.0,7.205e-05,2]
[420655731,1776435040382,-150.0,7.205e-05,2]
[420655732,1776435040394,-150.0,7.205e-05,2]
[420655734,1776435040405,-150.0,7.205e-05,2]
[420655735,1776435040417,-150.0,7.205e-05,2]
[420655736,1776435040428,-150.0,7.208e-05,2]
[420655737,1776435040439,-151.0,7.223e-05,2]
[420655739,1776435040451,-150.0,7.225e-05,2]
[420655741,1776435040462,-2271.06304214,7.226e-05,2]
[420655742,1776435040511,-2450.15674466,7.226e-05,2]
[420655743,1776435040525,-57273.87125337,7.226e-05,2]
[420655745,1776435040539,-42741.22620484,7.226e-05,2]
[420655780,1776435043876,-150.0,6.949e-05,2]
[420655781,1776435043886,-150.0,7.015e-05,2]
[420655782,1776435043897,-150.0,7.024e-05,2]
[420655783,1776435043907,-150.0,7.103e-05,2]
[420655784,1776435043917,-150.0,7.142e-05,2]
[420655785,1776435043927,-9626.93887659,7.226e-05,2]
[420655787,1776435045716,-415385.06190315,7.226e-05,2]
[420655789,1776435045726,-1602.3708368,7.226e-05,2]
[420655791,1776435045735,-152.0,7.226e-05,2]
[420655792,1776435045744,-154.35640537,7.226e-05,2]
[420655793,1776435045754,-151.88006752,7.226e-05,2]
[420655794,1776435045763,-1326.0,7.231e-05,2]
[420655795,1776435045773,-185115.17,7.236e-05,2]
[420655796,1776435045783,-202.0,7.3e-05,2]
[420655797,1776435045792,-204.0,7.3e-05,2]
[420655798,1776435045801,-1000.0,7.311e-05,2]
[420655799,1776435045811,-1000.0,7.321e-05,2]
[420655800,1776435045821,-1000.62439048,7.321e-05,2]
[420655802,1776435045831,-1000.0,7.321e-05,2]
[420655803,1776435045841,-1004.23904526,7.321e-05,2]
[420655804,1776435045851,-1000.0,7.321e-05,2]
[420655805,1776435045862,-1000.0,7.321e-05,2]
[420655806,1776435045871,-1000.0,7.321e-05,2]
[420655807,1776435045882,-506.35109511,7.321e-05,2]
[420655808,1776435045892,-150.0,7.343e-05,2]
[420655809,1776435045901,-823.0,7.346e-05,2]
[420655810,1776435045911,-1000.0,7.446e-05,2]
[420655811,1776435045921,-755.0,7.455e-05,2]
[420655812,1776435045931,-5286.38,7.472e-05,2]
[420655813,1776435045941,-1680.0,7.478e-05,2]
[420655814,1776435045950,-255.0,7.479e-05,2]
[420655815,1776435045961,-193.0,7.48e-05,2]
[420655816,1776435045970,-250.0,7.48e-05,2]
[420655817,1776435045980,-2440.52,7.521e-05,2]
[420655818,1776435045989,-200.0,7.526e-05,2]
[420655819,1776435045999,-555.0,7.555e-05,2]
[420655820,1776435046008,-818.6,7.605e-05,2]
[420655821,1776435046018,-1500.0,7.633e-05,2]
[420655822,1776435046028,-230.0,7.665e-05,3]
[420655823,1776435046039,-1281.24,7.671e-05,2]
[420655824,1776435046048,-756.0,7.689e-05,2]
[420655826,1776435046057,-25468.19,7.731e-05,2]
[420655828,1776435046066,-823.0,7.785e-05,2]
[420655830,1776435046076,-501.98527228,7.868e-05,2]
[420655832,1776435046086,-501.26652409,7.868e-05,2]
[420655834,1776435046095,-1500.0,7.868e-05,2]
[420655836,1776435046104,-502.17279001,7.868e-05,2]
[420655838,1776435046116,-205.07975284,7.878e-05,2]
[420655840,1776435046126,-3049.765551,7.945e-05,2]
[420655842,1776435046135,-154.0,8e-05,2]
[420655844,1776435046144,-154.0,8e-05,2]
[420655846,1776435046153,-154.0,8e-05,2]
[420655848,1776435046162,-5000.0,8e-05,2]
[420655850,1776435046172,-9436.21796005,8e-05,2]
[420655852,1776435046182,-2356.0,8.023e-05,2]
[420655854,1776435046191,-231.45,8.033e-05,2]
[420655856,1776435046200,-200.74,8.051e-05,2]
[420655858,1776435046210,-1000.0,8.143e-05,2]
[420655860,1776435046219,-2500.0,8.145e-05,2]
[420655863,1776435046231,-1446.849223,8.178e-05,2]
[420655865,1776435046240,-171.26,8.2e-05,2]
[420655867,1776435046249,-192.94,8.2e-05,2]
[420655869,1776435046259,-166.17,8.2e-05,2]
[420655871,1776435046269,-166.18,8.2e-05,2]
[420655873,1776435046278,-500.0,8.219e-05,2]
[420655875,1776435046287,-500.0,8.219e-05,2]
[420655877,1776435046296,-500.0,8.219e-05,2]
[420655878,1776435046305,-310.97929072,8.219e-05,2]
[420655879,1776435046315,-267.6855035,8.219e-05,2]
[420655880,1776435046326,-10623.94,8.219e-05,2]
[420655881,1776435046336,-2000.0,8.219e-05,2]
[420655882,1776435046345,-4980.82,8.219e-05,2]
[420655883,1776435046354,-200.0,8.219e-05,2]
[420655884,1776435046363,-500.0,8.219e-05,2]
[420655885,1776435046373,-150.0,8.22e-05,2]
[420655886,1776435046383,-2351.0,8.226e-05,2]
[420655887,1776435046392,-433.0,8.227e-05,2]
[420655888,1776435046402,-1000.0,8.234e-05,2]
[420655889,1776435046412,-1742.0,8.256e-05,2]
[420655890,1776435046422,-1000.0,8.262e-05,2]
[420655891,1776435046432,-502.0,8.274e-05,2]
[420655892,1776435046442,-154.27513302,8.34e-05,2]
[420655893,1776435046452,-1325.0,8.354e-05,2]
[420655894,1776435046461,-1000.0,8.416e-05,2]
[420655895,1776435046472,-823.18330102,8.416e-05,2]
[420655896,1776435046482,-578.20924308,8.431e-05,2]
[420655897,1776435046491,-646.65982734,8.431e-05,2]
[420655898,1776435046505,-500.0,8.431e-05,2]
[420655899,1776435046514,-1280.88388878,8.431e-05,2]
[420655900,1776435046523,-151.0,8.431e-05,2]
[420655902,1776435046532,-200.0,8.431e-05,2]
[420655904,1776435046541,-174.61919141,8.431e-05,2]
[420655905,1776435046551,-500.0,8.431e-05,2]
[420655906,1776435046560,-500.0,8.431e-05,2]
[420655907,1776435046570,-500.0,8.431e-05,2]
[420655908,1776435046579,-500.0,8.431e-05,2]
[420655910,1776435046588,-500.0,8.431e-05,2]
[420655912,1776435046598,-500.0,8.431e-05,2]
[420655913,1776435046609,-500.0,8.431e-05,2]
[420655914,1776435046618,-500.0,8.431e-05,2]
[420655915,1776435046628,-500.0,8.431e-05,2]
[420655916,1776435046637,-500.0,8.431e-05,2]
[420655917,1776435046646,-500.0,8.431e-05,2]
[420655918,1776435046659,-500.0,8.431e-05,2]
[420655919,1776435046668,-500.0,8.431e-05,2]
[420655920,1776435046677,-152.21609209,8.431e-05,2]
[420655921,1776435046686,-311.35716764,8.431e-05,2]
[420655922,1776435046695,-235.75327198,8.431e-05,2]
[420655923,1776435046705,-2689.0,8.471e-05,2]
[420655924,1776435046714,-195.42,8.474e-05,2]
[420655925,1776435046724,-500.0,8.486e-05,2]
[420655926,1776435046733,-151.0,8.486e-05,2]
[420655927,1776435046742,-4048.56327612,8.49e-05,2]
[420655928,1776435046752,-200.0,8.493e-05,2]
[420655930,1776435046762,-200.0,8.493e-05,2]
[420655932,1776435046771,-200.0,8.493e-05,2]
[420655934,1776435046781,-200.0,8.493e-05,2]
[420655936,1776435046790,-200.0,8.493e-05,2]
[420655938,1776435046798,-200.0,8.493e-05,2]
[420655940,1776435046808,-300.0,8.493e-05,2]
[420655942,1776435046818,-500.0,8.493e-05,2]
[420655944,1776435046827,-237.39,8.504e-05,2]
[420655945,1776435046838,-230.0,8.509e-05,3]
[420655946,1776435046849,-150.0,8.52e-05,2]
[420655947,1776435046859,-3225.0,8.541e-05,2]
[420655948,1776435046868,-500.0,8.541e-05,2]
[420655949,1776435046879,-151.0,8.541e-05,2]
[420655950,1776435046889,-244.27,8.565e-05,2]
[420655951,1776435046898,-500.0,8.596e-05,2]
[420655952,1776435046908,-151.0,8.596e-05,2]
[420655953,1776435046918,-500.0,8.651e-05,2]
[420655954,1776435046927,-814.0,8.658e-05,2]
[420655955,1776435046936,-203.18725147,8.669e-05,2]
[420655956,1776435046945,-2000.0,8.677e-05,2]
[420655957,1776435046954,-262399.12396074,8.7e-05,2]
[420655958,1776435046963,-500.0,8.706e-05,2]
[420655959,1776435046972,-1988.0,8.754e-05,2]
[420655960,1776435046982,-3638.70551195,8.759e-05,2]
[420655961,1776435046992,-500.0,8.761e-05,2]
[420655962,1776435047002,-500.0,8.816e-05,2]
[420655963,1776435047012,-150.0,8.82e-05,2]
[420655964,1776435047021,-29326.90342,8.82e-05,2]
[420655965,1776435047032,-500.0,8.871e-05,2]
[420655966,1776435047042,-567.0,8.879e-05,2]
[420655967,1776435047051,-500.0,8.926e-05,2]
[420655968,1776435047060,-1000.0,8.937e-05,2]
[420655969,1776435047069,-231.45,8.948e-05,2]
[420655970,1776435047079,-1264.0,8.965e-05,2]
[420655971,1776435047088,-1000.0,8.972e-05,2]
[420655972,1776435047097,-1328.27659266,8.979e-05,2]
[420655973,1776435047106,-200.0,8.979e-05,2]
[420655974,1776435047115,-181.08010149,8.979e-05,2]
[420655975,1776435047125,-500.0,8.981e-05,2]
[420655976,1776435047134,-5000.0,9e-05,2]
[420655977,1776435047144,-11200.0,9e-05,3]
[420655978,1776435047154,-3251.0,9.036e-05,2]
[420655979,1776435047163,-500.0,9.036e-05,2]
[420655980,1776435047175,-500.0,9.041e-05,2]
[420655981,1776435047185,-3292.0,9.048e-05,2]
[420655982,1776435047195,-736.0,9.049e-05,2]
[420655983,1776435047204,-500.0,9.091e-05,2]
[420655984,1776435047214,-150.0,9.129e-05,2]
[420655985,1776435047223,-500.0,9.146e-05,2]
[420655986,1776435047233,-1000.0,9.174e-05,2]
[420655987,1776435047243,-160.0,9.183e-05,2]
[420655988,1776435047252,-2000.0,9.247e-05,2]
[420655989,1776435047261,-377.0,9.25e-05,2]
[420655990,1776435047271,-150.0,9.267e-05,2]
[420655991,1776435047281,-500.0,9.315e-05,2]
[420655992,1776435047291,-498.6047025,9.321e-05,2]
[420655993,1776435047301,-1000.0,9.343e-05,2]
[420655994,1776435047310,-230.0,9.352e-05,3]
[420655995,1776435047320,-1000.0,9.356e-05,2]
[420655996,1776435047330,-320.53700362,9.394e-05,2]
[420655997,1776435047340,-151.0,9.413e-05,2]
[420655998,1776435047349,-30000.0,9.416e-05,2]
[420655999,1776435047359,-150.0,9.429e-05,2]
[420656000,1776435047369,-171.26,9.433e-05,2]
[420656001,1776435047379,-1502.6,9.44e-05,2]
[420656002,1776435047389,-183.9452,9.5e-05,2]
[420656003,1776435047398,-183.9452,9.5e-05,2]
[420656004,1776435047407,-1377.42282659,9.527e-05,2]
[420656005,1776435047417,-200.0,9.527e-05,2]
[420656006,1776435047426,-187.78006525,9.527e-05,2]
[420656007,1776435047435,-1348.0,9.587e-05,2]
[420656008,1776435047444,-622.0,9.587e-05,2]
[420656009,1776435047455,-3528.0,9.587e-05,2]
[420656010,1776435047464,-500.0,9.589e-05,2]
[420656011,1776435047474,-1265.0,9.615e-05,2]
[420656012,1776435047484,-3778.0,9.625e-05,2]
[420656013,1776435047495,-416.0,9.625e-05,2]
[420656014,1776435047505,-1894.0,9.632e-05,5]
[420656015,1776435047515,-150.0,9.729e-05,2]
[420656016,1776435047525,-154.0,9.8e-05,2]
[420656017,1776435047536,-154.0,9.8e-05,2]
[420656018,1776435047546,-163.82,9.8e-05,2]
[420656019,1776435047555,-300.0,9.8e-05,2]
[420656020,1776435047565,-300.0,9.8e-05,2]
[420656021,1776435047575,-300.0,9.8e-05,2]
[420656022,1776435047584,-300.0,9.8e-05,2]
[420656023,1776435047594,-300.0,9.8e-05,2]
[420656024,1776435047603,-300.0,9.8e-05,2]
[420656025,1776435047612,-300.0,9.8e-05,2]
[420656026,1776435047622,-300.0,9.8e-05,2]
[420656027,1776435047632,-240.0,9.8e-05,2]
[420656028,1776435047641,-1512.0,9.8e-05,5]
[420656029,1776435047651,-500.0,9.863e-05,2]
[420656030,1776435047661,-14900.0,9.9e-05,3]
[420656031,1776435047671,-714.89581024,9.91e-05,2]
[420656032,1776435047681,-151.0,9.945e-05,2]
[420656033,1776435047692,-150.0,9.945e-05,2]
[420656034,1776435047702,-150.0,9.945e-05,2]
[420656035,1776435047712,-150.0,9.945e-05,2]
[420656036,1776435047722,-1047.0,9.945e-05,2]
[420656037,1776435047732,-1231.0,9.953e-05,2]
[420656038,1776435047742,-613.0,9.954e-05,2]
[420656039,1776435047751,-154.3,9.96e-05,2]
[420656040,1776435047760,-7122.0,9.973e-05,2]
[420656041,1776435047770,-62846.77465542,9.991e-05,2]
[420656042,1776435047779,-261.62569791,0.0001,2]
[420656043,1776435047789,-1200.0,0.0001,2]
[420656044,1776435047799,-154.0,0.0001,2]
[420656045,1776435047808,-154.0,0.0001,2]
[420656046,1776435047819,-154.0,0.0001,2]
[420656047,1776435047828,-154.0,0.0001,2]
[420656048,1776435047838,-154.0,0.0001,2]
[420656049,1776435047847,-154.0,0.0001,2]
[420656050,1776435047856,-300.0,0.0001,2]
[420656051,1776435047865,-9592.3719962,0.0001,2]
[420656052,1776435047875,-24916.14261178,0.0001,3]
[420656053,1776435047884,-162.86,0.0001,2]
[420656054,1776435047894,-470.19291728,0.0001,2]
[420656055,1776435047903,-470.19291728,0.0001,2]
[420656056,1776435047912,-500.0,0.0001,2]
[420656057,1776435047922,-500.0,0.0001,2]
[420656058,1776435047932,-500.0,0.0001,2]
[420656059,1776435047941,-500.0,0.0001,2]
[420656060,1776435047951,-500.0,0.0001,2]
[420656061,1776435047961,-200.0,0.0001,2]
[420656062,1776435047970,-500.0,0.0001,2]
[420656063,1776435047979,-500.0,0.0001,2]
[420656064,1776435047988,-500.0,0.0001,2]
[420656065,1776435047997,-500.0,0.0001,2]
[420656066,1776435048007,-500.0,0.0001,2]
[420656067,1776435048016,-511.72246464,0.0001,2]
[420656068,1776435048026,-18700.0,0.0001,3]
[420656069,1776435048037,-500.0,0.0001,2]
[420656070,1776435048047,-500.0,0.0001,2]
[420656071,1776435048057,-151.0,0.0001,2]
[420656072,1776435048069,-500.0,0.0001,2]
[420656073,1776435048079,-151.0,0.0001,2]
[420656074,1776435048088,-500.0,0.0001,2]
[420656075,1776435048097,-151.0,0.0001,2]
[420656076,1776435048107,-500.0,0.0001,2]
[420656077,1776435048115,-151.0,0.0001,2]
[420656078,1776435048125,-500.0,0.0001,2]
[420656079,1776435048134,-151.0,0.0001,2]
[420656080,1776435048144,-500.0,0.0001,2]
[420656081,1776435048153,-500.0,0.0001,2]
[420656082,1776435048163,-151.0,0.0001,2]
[420656083,1776435048172,-151.0,0.0001,2]
[420656084,1776435048182,-197.79686157,0.0001,2]
[420656085,1776435048191,-151.0,0.0001,2]
[420656086,1776435048202,-151.0,0.0001,2]
[420656087,1776435048211,-151.0,0.0001,2]
[420656088,1776435048222,-151.0,0.0001,2]
[420656089,1776435048232,-151.0,0.0001,2]
[420656090,1776435048241,-151.0,0.0001,2]
[420656091,1776435048252,-151.0,0.0001,2]
[420656092,1776435048261,-151.34953961,0.0001,2]
[420656093,1776435048271,-344.83232753,0.0001,2]
[420656094,1776435048282,-715.02735105,0.0001,2]
[420656095,1776435048291,-651.84872725,0.0001,2]
[420656096,1776435048301,-738.06594264,0.0001,2]
[420656097,1776435048311,-150.0,0.0001,2]
[420656098,1776435048320,-150.0,0.0001,2]
[420656099,1776435048330,-150.0,0.0001,2]
[420656100,1776435048340,-150.0,0.0001,2]
[420656101,1776435048351,-150.0,0.0001,2]
[420656102,1776435048360,-151.0,0.0001,2]
[420656103,1776435048370,-443.35312044,0.0001,2]
[420656104,1776435048380,-500.0,0.0001,2]
[420656105,1776435048389,-500.0,0.0001,2]
[420656106,1776435048399,-500.0,0.0001,2]
[420656107,1776435048408,-500.0,0.0001,2]
[420656108,1776435048417,-500.0,0.0001,2]
[420656109,1776435048426,-500.0,0.0001,2]
[420656110,1776435048673,-500.0,0.0001,2]
[420656111,1776435048708,-500.0,0.0001,2]
[420656112,1776435048718,-500.0,0.0001,2]
[420656113,1776435048727,-500.0,0.0001,2]
[420656114,1776435048736,-500.0,0.0001,2]
[420656115,1776435048746,-500.0,0.0001,2]
[420656116,1776435048756,-500.0,0.0001,2]
[420656117,1776435048765,-500.0,0.0001,2]
[420656118,1776435048775,-500.0,0.0001,2]
[420656119,1776435048785,-500.0,0.0001,2]
[420656120,1776435048794,-500.0,0.0001,2]
[420656121,1776435048804,-500.0,0.0001,2]
[420656122,1776435048813,-500.0,0.0001,2]
[420656123,1776435048822,-500.0,0.0001,2]
[420656124,1776435048832,-500.0,0.0001,2]
[420656125,1776435048842,-500.0,0.0001,2]
[420656126,1776435048851,-1000.0,0.00010023,2]
[420656127,1776435048861,-150.0,0.00010029,2]
[420656128,1776435048871,-178.26,0.0001005,2]
[420656129,1776435048880,-150.0,0.00010052,2]
[420656130,1776435048890,-154.3,0.00010057,2]
[420656131,1776435048899,-1428.38747117,0.00010075,2]
[420656132,1776435048908,-200.0,0.00010075,2]
[420656133,1776435048919,-194.72792766,0.00010075,2]
[420656134,1776435048928,-250.0,0.00010084,2]
[420656135,1776435048937,-250.0,0.00010084,2]
[420656136,1776435048947,-250.0,0.00010084,2]
[420656137,1776435048956,-250.0,0.00010084,2]
[420656138,1776435048966,-250.0,0.00010084,2]
[420656139,1776435048975,-250.0,0.00010084,2]
[420656140,1776435048984,-250.0,0.00010084,2]
[420656141,1776435048993,-250.0,0.00010084,2]
[420656142,1776435049002,-250.0,0.00010084,2]
[420656143,1776435049012,-201.0,0.00010084,2]
[420656144,1776435049021,-10000.0,0.00010084,2]
[420656145,1776435049031,-150.0,0.00010097,2]
[420656146,1776435049040,-150.0,0.00010097,2]
[420656147,1776435049049,-150.0,0.00010097,2]
[420656148,1776435049058,-150.0,0.00010097,2]
[420656149,1776435049068,-160.0,0.00010097,2]
[420656150,1776435049077,-500.0,0.00010137,2]
[420656151,1776435049087,-200.0,0.00010184,2]
[420656152,1776435049096,-230.0,0.00010195,3]
[420656153,1776435049106,-550.0,0.000102,2]
[420656154,1776435049116,-550.0,0.000102,2]
[420656155,1776435049125,-550.0,0.000102,2]
[420656156,1776435049135,-550.0,0.000102,2]
[420656157,1776435049144,-550.0,0.000102,2]
[420656158,1776435049153,-550.0,0.000102,2]
[420656159,1776435049166,-550.0,0.000102,2]
[420656160,1776435049175,-550.0,0.000102,2]
[420656161,1776435049184,-550.0,0.000102,2]
[420656162,1776435049193,-305.0,0.000102,2]
[420656163,1776435049203,-192.14915578,0.000102,2]
[420656164,1776435049212,-2225.48902098,0.000102,2]
[420656165,1776435049222,-10055.76954391,0.000102,2]
[420656166,1776435049231,-152.0,0.00010225,3]
[420656167,1776435049240,-157.4443109,0.0001025,2]
[420656168,1776435049249,-2000.0,0.00010274,2]